bitfinex/quotes_ETHUSD_20241019
["timestamp","ask_amount","ask_price","bid_price","bid_amount"]
[1729355750574,4.24153635,2645.0,2644.3,0.1528]
[1729355752221,3.40278,2644.9,2644.3,0.30399945]
[1729355752427,0.07424668,2644.8,2644.3,0.30399945]
[1729355752716,0.07424668,2644.8,2644.3,0.1528]
[1729355752902,0.07424668,2645.0,2644.3,0.1528]
[1729355753309,0.07424668,2645.0,2644.4,0.1528]
[1729355754328,0.07424668,2645.0,2644.4,0.30398553]
[1729355754517,6.80516,2645.1,2644.4,0.1528]
[1729355754907,6.80516,2645.1,2644.4,0.3039886]
[1729355755106,6.80516,2645.1,2644.4,0.1528]
[1729355755286,3.40253,2645.1,2644.4,0.1528]
[1729355755497,4.16885,2645.2,2644.5,0.1528]
[1729355755946,4.16885,2645.2,2644.6,0.1528]
[1729355756805,3.40233,2645.3,2644.6,0.1528]
[1729355757005,0.07424668,2645.2,2644.6,0.1528]
[1729355758392,0.07424668,2645.4,2644.8,0.1528]
[1729355758590,3.47641668,2645.4,2644.8,0.1528]
[1729355759532,3.47261668,2645.4,2644.8,0.1528]
[1729355761495,3.40229,2645.3,2644.8,0.1528]
[1729355761834,0.06664668,2645.2,2644.8,0.1528]
[1729355762537,3.40255,2645.1,2644.8,0.1528]
[1729355762837,0.06664668,2645.0,2644.8,0.1528]
[1729355763733,3.46916668,2645.1,2644.8,0.1528]
[1729355763943,6.87176668,2645.1,2644.8,0.1528]
[1729355764093,3.46916668,2645.1,2644.8,0.1528]
[1729355765251,3.40265,2645.0,2644.8,0.1528]
[1729355765411,0.06664668,2644.9,2644.8,0.1528]
[1729355766418,3.40283,2644.9,2644.6,0.1528]
[1729355766632,0.06664668,2644.8,2644.4,0.1528]
[1729355766815,0.06664668,2644.8,2644.5,0.15127274]
[1729355767036,0.06664668,2644.8,2644.4,0.94600718]
[1729355767397,0.06664668,2644.8,2644.5,0.15125794]
[1729355767597,0.06664668,2644.8,2644.4,1.15915901]
[1729355767833,0.06664668,2644.8,2644.5,0.15125258]
[1729355768050,0.06664668,2644.8,2644.4,1.15915901]
[1729355768255,0.06664668,2644.8,2644.5,0.15125158]
[1729355768456,0.06664668,2644.8,2644.4,1.15915901]
[1729355769832,0.06664668,2644.8,2644.4,0.36595183]
[1729355770023,0.06664668,2644.8,2644.4,1.15915901]
[1729355770460,0.06664668,2644.8,2644.4,0.36595183]
[1729355770661,0.06664668,2644.8,2644.4,1.15915901]
[1729355771159,0.06664668,2644.8,2644.5,0.15125895]
[1729355771332,0.06664668,2644.8,2644.4,1.15915901]
[1729355771534,0.06664668,2644.8,2644.5,0.15126422]
[1729355771858,0.06664668,2644.8,2644.4,0.94600718]
[1729355772365,3.46963668,2644.8,2644.4,0.79320718]
[1729355772862,3.46963668,2644.8,2644.3,0.79320718]
[1729355773622,3.4031,2644.7,2644.3,0.79320718]
[1729355773822,0.86814668,2644.6,2644.3,0.79320718]
[1729355774048,4.27130668,2644.6,2644.2,0.79320718]
[1729355774265,4.27130668,2644.6,2644.1,1.33831116]
[1729355774266,4.27130668,2644.6,2644.1,0.94600718]
[1729355774455,4.27130668,2644.6,2644.1,0.79320718]
[1729355774865,3.4033,2644.5,2644.1,0.79320718]
[1729355775157,0.06664668,2644.4,2644.1,0.79320718]
[1729355775735,0.06664668,2644.4,2644.2,0.79320718]
[1729355776161,0.06664668,2644.5,2644.2,0.79320718]
[1729355776636,0.06664668,2644.5,2644.2,0.94600718]
[1729355777251,0.06664668,2644.4,2644.2,0.94600718]
[1729355777573,0.06664668,2644.6,2644.2,0.94600718]
[1729355779774,0.06664668,2644.6,2644.3,0.15129705]
[1729355779960,0.06664668,2644.7,2644.2,1.15915901]
[1729355780475,0.06664668,2644.7,2644.3,0.15129244]
[1729355780637,0.06664668,2644.7,2644.2,1.15915901]
[1729355780982,0.8015,2645.1,2644.4,0.79320718]
[1729355781164,0.07044668,2645.0,2644.5,0.1528]
[1729355781361,0.07044668,2645.0,2644.5,0.94600718]
[1729355781566,0.07044668,2645.0,2644.6,0.94445607]
[1729355781749,0.07044668,2645.0,2644.7,0.1528]
[1729355781952,0.07044668,2645.0,2644.7,0.36595183]
[1729355782149,0.07044668,2645.2,2644.7,0.36595183]
[1729355782340,0.07044668,2645.2,2644.7,0.1528]
[1729355782753,0.07044668,2645.3,2644.8,0.1528]
[1729355783162,8.0992,2645.6,2644.8,0.79320718]
[1729355783163,0.07044668,2645.5,2644.8,0.79320718]
[1729355783467,0.07044668,2645.5,2644.9,0.1528]
[1729355798675,0.07044668,2645.5,2644.9,0.94600718]
[1729355798911,0.07044668,2645.5,2644.9,0.1528]
[1729355801580,0.07044668,2645.5,2644.9,0.79320718]
[1729355801785,0.07044668,2645.7,2645.0,0.1528]
[1729355802084,0.53643348,2645.7,2645.0,0.1528]
[1729355802287,6.80384,2645.6,2645.0,0.1528]
[1729355802632,4.26541668,2645.5,2645.0,0.1528]
[1729355803621,3.40213,2645.4,2645.0,0.1528]
[1729355803828,3.47270668,2645.3,2644.8,0.1528]
[1729355803998,0.7929,2645.2,2644.8,0.1528]
[1729355804200,0.07044668,2645.1,2644.8,0.1528]
[1729355805130,3.47297668,2645.1,2644.8,0.1528]
[1729355806526,0.07044668,2645.1,2644.8,0.1528]
[1729355808028,0.83725235,2645.1,2644.6,0.79320718]
[1729355809622,3.40266,2645.0,2644.6,0.79320718]
[1729355809822,0.07044668,2644.9,2644.6,0.79320718]
[1729355811028,0.07044668,2644.8,2644.6,0.79320718]
[1729355811908,3.47310668,2645.0,2644.7,0.15144387]
[1729355812110,3.40278,2644.9,2644.6,0.79320718]
[1729355812309,0.07044668,2644.8,2644.6,0.79320718]
[1729355813399,0.07044668,2644.9,2644.6,0.79320718]
[1729355815503,0.86334668,2644.9,2644.6,0.79320718]
[1729355821459,3.40303,2644.7,2644.6,0.79320718]
[1729355821644,4.24040435,2644.7,2644.6,0.79320718]
[1729355824638,4.24040435,2644.7,2644.2,0.94455694]
[1729355824818,4.24040435,2644.7,2644.2,0.79320718]
[1729355826663,0.7828,2644.6,2644.2,0.79320718]
[1729355826878,3.47382668,2644.5,2644.1,0.79320718]
[1729355827064,3.82915267,2644.4,2644.1,0.79320718]
[1729355827232,0.07044668,2644.3,2644.0,0.94454714]
[1729355827432,0.07044668,2644.3,2644.0,0.79320718]
[1729355828151,0.07044668,2644.3,2643.9,0.94600718]
[1729355828357,0.07044668,2644.3,2644.0,0.15135823]
[1729355828571,0.07044668,2644.3,2643.9,0.94600718]
[1729355828902,0.07044668,2644.3,2644.0,0.94455507]
[1729355829042,0.07044668,2644.3,2644.0,0.79320718]
[1729355829246,0.07044668,2644.4,2644.1,0.1528]
[1729355829445,0.07044668,2644.7,2644.1,0.94600718]
[1729355829646,0.07044668,2644.7,2644.2,0.15130621]
[1729355829940,0.07044668,2644.7,2644.1,0.94600718]
[1729355830172,0.07044668,2644.7,2644.2,0.15129999]
[1729355830368,0.07044668,2644.7,2644.1,1.33780113]
[1729355830569,0.07044668,2644.7,2644.3,0.94600718]
[1729355830770,0.07044668,2644.9,2644.4,0.15128404]
[1729355830977,0.07044668,2644.9,2644.3,0.94600718]
[1729355831174,0.07044668,2644.9,2644.4,0.15127602]
[1729355831382,0.07044668,2644.9,2644.3,0.94600718]
[1729355831568,0.07044668,2644.9,2644.4,0.15129999]
[1729355831770,0.07044668,2644.9,2644.3,1.35566535]
[1729355832082,3.47325668,2644.9,2644.3,0.1528]
[1729355832389,0.07044668,2644.9,2644.3,0.1528]
[1729355832684,0.07044668,2644.9,2644.4,0.1513416]
[1729355832891,0.07044668,2644.9,2644.3,0.94600718]
[1729355833186,0.07044668,2644.9,2644.4,0.1513417]
[1729355833385,0.07044668,2644.9,2644.3,0.94600718]
[1729355833386,0.07044668,2644.9,2644.3,0.1528]
[1729355833685,0.07044668,2644.9,2644.3,0.40513123]
[1729355833841,0.07044668,2644.9,2644.4,0.15136909]
[1729355834044,0.07044668,2644.9,2644.4,0.1528]
[1729355834244,0.7828,2644.8,2644.3,0.79320718]
[1729355834482,0.07044668,2644.7,2644.4,0.15138876]
[1729355834685,0.07044668,2644.7,2644.3,0.1528]
[1729355834885,0.07044668,2644.7,2644.4,0.15139409]
[1729355835185,0.07044668,2644.7,2644.3,0.94600718]
[1729355835385,0.07044668,2644.7,2644.4,0.15140467]
[1729355835590,0.07044668,2644.7,2644.3,0.1528]
[1729355835796,0.07044668,2644.7,2644.4,0.15140327]
[1729355836095,0.07044668,2644.7,2644.3,0.1528]
[1729355836298,0.07044668,2644.7,2644.4,0.15140407]
[1729355836595,0.07044668,2644.7,2644.3,0.1528]
[1729355836747,0.07044668,2644.7,2644.4,0.15141375]
[1729355836949,0.07044668,2644.7,2644.3,0.1528]
[1729355837146,0.07044668,2644.7,2644.4,0.15141507]
[1729355837403,0.07044668,2644.7,2644.3,0.1528]
[1729355837547,0.07044668,2644.7,2644.4,0.15142485]
[1729355837750,0.07044668,2644.7,2644.3,0.1528]
[1729355837950,0.07044668,2644.7,2644.4,0.15142964]
[1729355838196,0.07044668,2644.7,2644.3,0.1528]
[1729355838599,0.07044668,2644.7,2644.4,0.1514228]
[1729355838757,0.07044668,2644.7,2644.3,0.1528]
[1729355839698,0.07044668,2644.7,2644.4,0.15144047]
[1729355839912,3.47347668,2644.7,2644.3,0.1528]
[1729355840095,3.47347668,2644.7,2644.4,0.15143854]
[1729355840278,3.47347668,2644.7,2644.3,0.1528]
[1729355840955,3.47347668,2644.7,2644.4,0.15145145]
[1729355841211,3.47347668,2644.7,2644.3,0.1528]
[1729355841502,4.23938935,2644.7,2644.3,0.1528]
[1729355841707,4.23938935,2644.7,2644.2,0.79320718]
[1729355841874,3.40316,2644.6,2644.3,0.15147434]
[1729355842074,0.89094668,2644.5,2644.0,0.79320718]
[1729355842287,0.89094668,2644.5,2644.1,0.15150194]
[1729355842458,0.89094668,2644.5,2644.0,0.79320718]
[1729355842664,4.29423668,2644.5,2644.1,0.1515028]
[1729355842986,5.06397635,2644.5,2644.0,0.79320718]
[1729355843188,5.06397635,2644.5,2644.1,0.15150592]
[1729355843505,5.06397635,2644.5,2644.0,0.79320718]
[1729355843702,1.66068635,2644.5,2644.1,0.1514926]
[1729355843904,1.66068635,2644.5,2644.0,0.79320718]
[1729355843905,1.66068635,2644.5,2644.2,0.15148514]
[1729355844109,1.66068635,2644.5,2644.0,0.79320718]
[1729355844417,0.89094668,2644.5,2644.1,0.15148448]
[1729355844709,0.89094668,2644.5,2644.0,0.79320718]
[1729355844919,0.89094668,2644.5,2644.1,0.15149255]
[1729355845083,0.89094668,2644.5,2644.0,0.79320718]
[1729355845407,0.89094668,2644.5,2644.1,0.15149637]
[1729355845608,0.89094668,2644.5,2644.0,0.79320718]
[1729355845824,0.89094668,2644.5,2644.1,0.15149175]
[1729355845986,0.89094668,2644.5,2644.0,0.79320718]
[1729355846321,0.89094668,2644.5,2644.1,0.1514924]
[1729355846625,0.89094668,2644.5,2644.2,0.1514924]
[1729355846781,0.89094668,2644.5,2644.0,0.79320718]
[1729355846978,0.89094668,2644.5,2644.1,0.15149129]
[1729355847176,0.89094668,2644.5,2644.0,0.79320718]
[1729355847376,4.29435668,2644.5,2644.1,0.15147959]
[1729355847626,1.66069835,2644.5,2644.0,0.79320718]
[1729355847798,4.29423668,2644.5,2644.1,0.15149537]
[1729355847998,4.29423668,2644.5,2644.0,0.79320718]
[1729355848199,4.29423668,2644.5,2644.1,0.15149664]
[1729355848412,4.29423668,2644.5,2644.0,0.79320718]
[1729355848596,4.29423668,2644.5,2644.1,0.1515046]
[1729355848795,4.29423668,2644.5,2644.0,0.79320718]
[1729355848999,0.07044668,2644.5,2644.2,0.1528]
[1729355849197,0.07044668,2644.6,2644.3,0.15146903]
[1729355849384,0.07044668,2644.8,2644.3,0.79320718]
[1729355849579,0.8205,2644.7,2644.2,0.94600718]
[1729355849819,0.07044668,2644.6,2644.2,0.79320718]
[1729355852135,0.07044668,2644.6,2644.3,0.15149671]
[1729355852307,0.07044668,2644.6,2644.2,0.79320718]
[1729355852505,0.07044668,2644.6,2644.3,0.15148862]
[1729355852693,0.07044668,2644.6,2644.2,0.79320718]
[1729355853902,0.07044668,2644.6,2644.3,0.15149396]
[1729355854116,0.07044668,2644.6,2644.2,0.79320718]
[1729355854707,0.8205,2644.5,2644.2,0.79320718]
[1729355855019,0.07044668,2644.4,2644.1,0.79320718]
[1729355857806,0.07044668,2644.4,2644.2,0.15151075]
[1729355858032,0.07044668,2644.4,2644.1,0.79320718]
[1729355859722,0.07044668,2644.4,2644.2,0.1515096]
[1729355859905,0.07044668,2644.4,2644.1,0.79320718]
[1729355860349,0.07044668,2644.4,2644.2,0.15150814]
[1729355860519,0.07044668,2644.4,2644.2,0.79320718]
[1729355865052,0.49985735,2644.4,2644.2,0.79320718]
[1729355865350,0.07044668,2644.4,2644.3,0.1521895]
[1729355865716,0.07044668,2644.4,2644.2,0.79320718]
[1729355866057,0.07044668,2644.4,2644.3,0.94539766]
[1729355866362,0.89094668,2644.5,2644.3,0.79320718]
[1729355866528,0.89094668,2644.5,2644.1,1.18551116]
[1729355866529,0.89094668,2644.5,2644.2,0.79320718]
[1729355866717,0.89094668,2644.5,2644.3,0.15219973]
[1729355866919,1.66066335,2644.5,2644.2,0.79320718]
[1729355867259,1.66066335,2644.5,2644.3,0.15219077]
[1729355867440,1.66066335,2644.5,2644.2,0.79320718]
[1729355867639,1.66066335,2644.5,2644.3,0.15219785]
[1729355867826,1.66066335,2644.5,2644.3,0.79320718]
[1729355868441,1.66066335,2644.5,2644.2,0.79320718]
[1729355868641,1.66066335,2644.5,2644.3,0.9454193]
[1729355868845,1.66066335,2644.5,2644.3,0.79320718]
[1729355869350,1.66066335,2644.5,2644.2,0.79320718]
[1729355869560,1.66066335,2644.5,2644.3,0.94543424]
[1729355869757,1.66066335,2644.5,2644.3,0.79320718]
[1729355870114,1.66066335,2644.5,2644.2,0.79320718]
[1729355870317,5.06397335,2644.5,2644.3,0.15223321]
[1729355870516,5.06397335,2644.5,2644.2,0.79320718]
[1729355870716,5.06397335,2644.5,2644.3,0.94545035]
[1729355870917,5.06397335,2644.5,2644.3,0.79320718]
[1729355871664,5.06397335,2644.5,2644.1,1.18551116]
[1729355871665,5.06397335,2644.5,2644.2,0.79320718]
[1729355871843,5.06397335,2644.5,2644.3,0.15225316]
[1729355872032,5.06397335,2644.5,2644.3,0.79320718]
[1729355872559,5.06397335,2644.5,2644.2,0.79320718]
[1729355872858,5.06397335,2644.5,2644.3,0.15226466]
[1729355873015,5.06397335,2644.5,2644.2,0.79320718]
[1729355873221,5.06397335,2644.5,2644.3,0.15227081]
[1729355873424,5.06397335,2644.5,2644.2,0.79320718]
[1729355873720,5.06397335,2644.5,2644.3,0.15226255]
[1729355874030,5.06397335,2644.5,2644.2,0.79320718]
[1729355874234,5.06397335,2644.5,2644.3,0.1522703]
[1729355874469,5.06397335,2644.5,2644.2,0.79320718]
[1729355874757,5.06397335,2644.5,2644.3,0.15227121]
[1729355874961,5.06397335,2644.5,2644.2,0.79320718]
[1729355875266,5.06397335,2644.5,2644.3,0.15227643]
[1729355875555,5.06397335,2644.5,2644.2,0.79320718]
[1729355875770,5.06397335,2644.5,2644.3,0.15228219]
[1729355876067,5.06397335,2644.5,2644.2,0.79320718]
[1729355876361,5.06397335,2644.5,2644.3,0.15227867]
[1729355876664,5.06397335,2644.5,2644.3,0.79320718]
[1729355876845,5.06397335,2644.5,2644.2,0.79320718]
[1729355877061,5.06397335,2644.5,2644.3,0.15228071]
[1729355877223,1.66066335,2644.5,2644.2,0.79320718]
[1729355877521,0.89094668,2644.5,2644.2,0.79320718]
[1729355877749,0.89094668,2644.5,2644.3,0.94464233]
[1729355877959,0.89094668,2644.5,2644.2,0.79320718]
[1729355878259,0.89094668,2644.5,2644.3,0.15143962]
[1729355878465,4.29423668,2644.5,2644.3,0.79320718]
[1729355878829,4.29423668,2644.5,2644.2,0.79320718]
[1729355879453,4.29423668,2644.5,2644.3,0.1514458]
[1729355879637,4.29423668,2644.5,2644.2,0.79320718]
[1729355879958,4.29423668,2644.5,2644.3,0.15145264]
[1729355880171,4.29423668,2644.5,2644.2,0.79320718]
[1729355880375,0.89094668,2644.5,2644.2,0.79320718]
[1729355880669,4.29430668,2644.5,2644.2,0.79320718]
[1729355880879,0.7557,2644.2,2644.1,0.79320718]
[1729355881038,4.15937,2644.2,2644.0,0.79320718]
[1729355881240,0.07044668,2644.1,2643.9,0.79320718]
[1729355882637,0.07044668,2644.1,2644.0,0.79320718]
[1729355883373,0.07044668,2644.1,2643.9,0.79320718]
[1729355884135,0.07044668,2644.1,2643.8,0.79320718]
[1729355885898,0.07044668,2644.1,2643.7,0.79320718]
[1729355889804,0.8002,2644.0,2643.7,0.79320718]
[1729355890001,0.07044668,2643.9,2643.7,0.79320718]
[1729355891337,0.07044668,2643.9,2643.6,0.94436202]
[1729355891511,0.07044668,2643.9,2643.7,0.79320718]
[1729355891844,0.8002,2644.0,2643.6,0.94435848]
[1729355891845,0.87064668,2644.0,2643.6,0.94435848]
[1729355892153,0.87064668,2644.0,2643.7,0.79320718]
[1729355892810,0.07044668,2643.9,2643.7,0.79320718]
[1729355894644,0.87064668,2644.0,2643.6,0.94434602]
[1729355894844,0.87064668,2644.0,2643.7,0.79320718]
[1729355895361,0.87064668,2644.0,2643.6,0.79320718]
[1729355895844,0.07044668,2643.9,2643.6,0.79320718]
[1729355896514,0.07044668,2643.9,2643.7,0.79320718]
[1729355897048,0.07044668,2643.9,2643.6,0.79320718]
[1729355897951,0.87064668,2644.0,2643.7,0.79320718]
[1729355898127,0.87064668,2644.0,2643.6,0.94434901]
[1729355898330,0.87064668,2644.0,2643.6,0.79320718]
[1729355898713,0.8002,2644.0,2643.6,0.79320718]
[1729355899035,0.07044668,2643.9,2643.6,0.79320718]
[1729355903286,0.07044668,2643.9,2643.7,0.15064986]
[1729355903599,0.07044668,2643.9,2643.6,0.79320718]
[1729355903746,0.07044668,2643.9,2643.7,0.15064984]
[1729355903942,0.07044668,2643.9,2643.6,0.79320718]
[1729355904145,0.07044668,2643.9,2643.7,0.15064952]
[1729355904392,0.07044668,2643.9,2643.6,0.79320718]
[1729355904553,0.07044668,2643.9,2643.7,0.15067005]
[1729355904895,0.07044668,2643.9,2643.6,0.79320718]
[1729355905051,0.07044668,2643.9,2643.7,0.15066906]
[1729355905250,0.07044668,2643.9,2643.6,0.79320718]
[1729355905559,0.87064668,2644.0,2643.7,0.15069259]
[1729355905782,0.87064668,2644.0,2643.6,0.79320718]
[1729355905948,0.87064668,2644.0,2643.7,0.15069615]
[1729355906292,0.87064668,2644.0,2643.6,0.79320718]
[1729355906594,0.8002,2644.0,2643.7,0.15072572]
[1729355906884,0.8002,2644.0,2643.6,0.79320718]
[1729355907050,0.07044668,2643.9,2643.7,0.15072573]
[1729355907260,0.07044668,2643.9,2643.8,0.15075667]
[1729355907468,0.07044668,2643.9,2643.6,0.79320718]
[1729355907788,0.87064668,2644.0,2643.7,0.15075748]
[1729355907967,0.87064668,2644.0,2643.6,0.79320718]
[1729355907968,0.87064668,2644.0,2643.8,0.15075748]
[1729355908169,0.87064668,2644.0,2643.6,0.79320718]
[1729355908363,0.87064668,2644.0,2643.7,0.15080996]
[1729355908704,0.87064668,2644.0,2643.8,0.15080996]
[1729355909011,0.8002,2644.0,2643.6,0.79320718]
[1729355909163,0.07044668,2643.9,2643.7,0.94401959]
[1729355909498,0.07044668,2643.9,2643.8,0.15081241]
[1729355916273,0.07044668,2643.9,2643.7,0.79320718]
[1729355916458,0.07044668,2643.9,2643.8,0.15092781]
[1729355917042,0.8002,2644.0,2643.8,0.15092781]
[1729355917285,0.8002,2644.0,2643.9,0.15092781]
[1729355919826,0.8002,2644.0,2643.8,0.79320718]
[1729355919964,0.8002,2644.0,2643.9,0.15092655]
[1729355923183,0.8002,2644.0,2643.9,0.94413373]
[1729355923408,0.8002,2644.0,2643.9,0.15092655]
[1729355924220,0.8002,2644.0,2643.9,0.94413373]
[1729355926720,0.8002,2644.0,2643.9,0.15092655]
[1729355927070,0.8002,2644.0,2643.9,0.94492572]
[1729355928409,0.8002,2644.0,2643.9,0.94498797]
[1729355928818,0.8002,2644.0,2643.9,0.94499995]
[1729355929014,0.8002,2644.0,2643.9,0.15092655]
[1729355930026,0.8002,2644.0,2643.9,0.94507962]
[1729355930510,0.8002,2644.0,2643.9,0.15092655]
[1729355930684,0.8002,2644.0,2643.9,0.94508387]
[1729355930884,0.8002,2644.0,2643.9,0.15092655]
[1729355931320,0.8002,2644.0,2643.9,1.33643771]
[1729355931498,0.8002,2644.0,2643.9,0.15092655]
[1729355933423,0.8002,2644.0,2643.9,0.94505332]
[1729355933707,0.8002,2644.0,2643.9,0.15092655]
[1729355933921,0.8002,2644.0,2643.9,1.33643771]
[1729355934303,0.8002,2644.0,2643.9,0.94504151]
[1729355934670,0.8002,2644.0,2643.9,1.33643688]
[1729355935078,0.8002,2644.0,2643.9,0.94503815]
[1729355935284,0.8002,2644.0,2643.9,0.15092572]
[1729355936280,0.8002,2644.0,2643.9,0.94505821]
[1729355937488,0.8002,2644.0,2643.9,0.15092572]
[1729355937687,0.8002,2644.0,2643.9,1.33643688]
[1729355937991,0.8002,2644.0,2643.9,0.94507397]
[1729355938429,0.8002,2644.0,2643.9,0.15093175]
[1729355939688,0.8002,2644.0,2643.9,0.94506914]
[1729355939914,0.8002,2644.0,2643.9,0.15093175]
[1729355940530,0.8002,2644.0,2643.9,0.94507016]
[1729355940931,0.8002,2644.0,2643.9,0.15093175]
[1729355941361,4.97195567,2644.0,2643.9,0.9450784]
[1729355941563,4.17439,2643.8,2643.7,0.79414665]
[1729355941732,4.17439,2643.8,2643.4,1.57326937]
[1729355941733,0.7702,2643.7,2643.6,0.79414665]
[1729355941931,3.82879367,2643.7,2643.4,0.79414665]
[1729355942132,0.7702,2643.4,2643.2,1.18551116]
[1729355942462,0.07044668,2643.3,2643.2,1.18551116]
[1729355942678,0.07044668,2643.3,2643.2,0.79373433]
[1729355944224,0.07044668,2643.3,2643.1,1.18551116]
[1729355944225,0.7702,2643.7,2643.1,0.86786665]
[1729355944470,0.07044668,2643.6,2643.3,0.1528]
[1729355946903,0.07044668,2643.6,2643.3,0.94653433]
[1729355947263,4.17422,2644.0,2643.4,0.94653433]
[1729355947264,0.84064668,2644.0,2643.4,0.94653433]
[1729355947508,0.07044668,2643.9,2643.6,0.1528]
[1729355947718,0.7702,2644.2,2643.6,0.94653433]
[1729355947719,0.07044668,2644.1,2643.6,0.94653433]
[1729355948404,0.07044668,2644.1,2643.6,0.1528]
[1729355953009,3.47426668,2644.1,2643.6,0.1528]
[1729355963323,4.23908335,2644.1,2643.6,0.1528]
[1729355977347,0.8121,2644.4,2643.6,0.1528]
[1729355977546,0.07044668,2644.4,2643.7,0.1508433]
[1729355977792,0.07044668,2644.4,2643.7,0.1528]
[1729355977963,0.07044668,2644.4,2643.9,0.1528]
[1729355980580,3.47382668,2644.5,2643.9,0.1528]
[1729355981415,0.07044668,2644.5,2643.9,0.1528]
[1729355981579,0.07044668,2644.7,2643.9,0.1528]
[1729355981784,3.4029,2644.8,2644.1,0.1528]
[1729355982091,3.47334668,2644.8,2644.1,0.1528]
[1729355982409,0.07044668,2644.8,2644.1,0.1528]
[1729355983781,0.07044668,2644.9,2644.1,0.1528]
[1729355985586,0.07044668,2644.9,2644.2,0.0420849]
[1729355985791,3.47321668,2644.9,2644.3,0.1528]
[1729355988224,0.07044668,2644.9,2644.3,0.1528]
[1729355988427,3.4029,2644.8,2644.3,0.1528]
[1729355988729,0.07044668,2644.7,2644.3,0.1528]
[1729355989104,3.47328668,2644.9,2644.3,0.1528]
[1729355991100,0.07044668,2644.9,2644.3,0.1528]
[1729355992034,3.47324668,2644.9,2644.3,0.1528]
[1729355992325,0.07044668,2644.9,2644.3,0.1528]
[1729355994495,3.40266,2645.0,2644.3,0.1528]
[1729355994693,0.07044668,2644.9,2644.3,0.1528]
[1729355994919,0.807,2644.8,2644.3,0.1528]
[1729355995149,0.07044668,2644.7,2644.3,0.1528]
[1729356000418,3.47354668,2644.7,2644.3,0.1528]
[1729356000613,0.76834567,2644.6,2644.3,0.1528]
[1729356000857,3.47354668,2644.7,2644.3,0.1528]
[1729356001060,0.07044668,2644.7,2644.3,0.1528]
[1729356001245,3.47349668,2644.7,2644.3,0.1528]
[1729356002239,0.07044668,2644.7,2644.3,0.1528]
[1729356002842,0.07044668,2644.7,2643.7,0.21320455]
[1729356002843,0.8187,2644.6,2644.0,0.1528]
[1729356003038,4.22237,2644.3,2643.7,0.1528]
[1729356003274,0.07044668,2644.2,2643.7,0.1528]
[1729356008609,0.49970335,2644.2,2643.7,0.1528]
[1729356009426,3.90344335,2644.2,2643.7,0.1528]
[1729356009628,7.30722335,2644.2,2643.7,0.1528]
[1729356010410,3.90344335,2644.2,2643.7,0.1528]
[1729356012217,0.07044668,2644.1,2643.7,0.1528]
[1729356013934,3.83299667,2644.2,2643.7,0.1528]
[1729356014134,0.53561635,2644.1,2643.7,0.1528]
[1729356014823,0.07044668,2644.1,2643.7,0.1528]
[1729356016611,0.07044668,2644.2,2643.7,0.1528]
[1729356020058,3.40411,2643.9,2643.6,0.68754924]
[1729356020215,3.47470668,2643.8,2643.5,0.1528]
[1729356020550,0.34747067,2643.7,2643.5,0.1528]
[1729356020711,0.07044668,2643.6,2643.5,0.1528]
[1729356020911,0.07044668,2643.6,2643.0,0.1528]
[1729356021272,4.29365668,2643.6,2643.0,0.1528]
[1729356021557,3.40492,2643.3,2642.6,0.79373433]
[1729356021709,4.64810868,2643.2,2642.7,0.1528]
[1729356022847,1.24303868,2643.2,2642.7,0.1528]
[1729356023527,3.40511,2643.1,2642.7,0.1528]
[1729356023847,0.07044668,2643.0,2642.7,0.1528]
[1729356024019,0.07044668,2643.1,2642.7,0.1528]
[1729356029363,0.34747067,2643.7,2642.7,0.1528]
[1729356029364,0.07044668,2643.3,2642.7,0.1528]
[1729356029513,0.07044668,2643.4,2642.7,0.1528]
[1729356031144,0.50114835,2643.4,2642.7,0.1528]
[1729356031350,3.90586835,2643.4,2642.7,0.1528]
[1729356032622,0.50114835,2643.4,2642.7,0.1528]
[1729356035345,0.07044668,2643.4,2642.7,0.1528]
[1729356037532,0.8321,2643.3,2642.7,0.1528]
[1729356037870,0.07044668,2643.2,2642.7,0.1528]
[1729356038629,0.8321,2643.1,2642.6,0.1504257]
[1729356038830,0.07044668,2643.0,2642.4,0.1504257]
[1729356039075,0.07044668,2643.0,2642.4,0.1528]
[1729356039263,0.07044668,2643.0,2642.4,0.3032257]
[1729356039480,0.07044668,2643.0,2642.4,0.1528]
[1729356039978,0.07044668,2643.0,2642.4,0.30326067]
[1729356040161,0.07044668,2643.0,2642.4,0.1528]
[1729356040676,0.07044668,2643.0,2642.4,0.30326067]
[1729356040841,0.07044668,2643.0,2642.4,0.1528]
[1729356041044,0.07044668,2643.0,2642.4,0.30326067]
[1729356041237,0.07044668,2643.0,2642.4,0.1528]
[1729356041437,0.07044668,2643.0,2642.4,0.30326067]
[1729356041642,0.07044668,2643.0,2642.4,0.1528]
[1729356041878,0.07044668,2643.0,2642.4,0.30326067]
[1729356042081,0.07044668,2643.0,2642.4,0.1528]
[1729356042238,0.07044668,2643.0,2642.4,0.30326067]
[1729356042439,0.07044668,2643.0,2642.4,0.1528]
[1729356042676,0.07044668,2643.0,2642.4,0.30326067]
[1729356042988,0.07044668,2643.0,2642.4,0.1528]
[1729356043339,0.07044668,2643.0,2642.4,0.30328471]
[1729356043573,0.07044668,2643.0,2642.4,0.1528]
[1729356043886,0.07044668,2643.0,2642.4,0.30328471]
[1729356044041,0.07044668,2643.0,2642.4,0.1528]
[1729356044242,0.07044668,2643.0,2642.4,0.30328471]
[1729356044486,0.07044668,2643.0,2642.4,0.1528]
[1729356044782,0.07044668,2643.0,2642.5,0.15048471]
[1729356045382,0.07044668,2643.0,2642.6,0.15054341]
[1729356045585,0.07044668,2643.0,2642.5,0.15054341]
[1729356045744,0.07044668,2643.0,2642.6,0.15054341]
[1729356046142,0.07044668,2643.0,2642.5,0.22825889]
[1729356046370,0.07044668,2643.0,2642.6,0.15057637]
[1729356046581,0.07044668,2643.0,2642.5,0.15057807]
[1729356046784,0.07044668,2643.0,2642.4,0.1528]
[1729356046960,0.07044668,2643.0,2642.5,0.15058093]
[1729356047284,0.07044668,2643.0,2642.4,0.1528]
[1729356047486,0.07044668,2643.0,2642.5,0.1506224]
[1729356047791,0.07044668,2643.0,2642.4,0.36600455]
[1729356048094,0.07044668,2643.0,2642.5,0.15062868]
[1729356048390,0.8145,2642.9,2642.4,0.36600455]
[1729356048556,0.8145,2642.9,2642.5,0.15069092]
[1729356048759,0.8145,2642.9,2642.4,0.36600455]
[1729356048974,0.8145,2642.9,2642.5,0.15069144]
[1729356049196,0.8145,2642.9,2642.4,0.36600455]
[1729356049483,0.8145,2642.9,2642.5,0.15076927]
[1729356049687,0.8145,2642.9,2642.6,0.15076927]
[1729356049986,0.8145,2642.9,2642.4,1.15973888]
[1729356050332,0.8145,2642.9,2642.5,0.15076274]
[1729356050496,0.8145,2642.9,2642.6,0.15076274]
[1729356050792,0.8145,2642.9,2642.7,0.15076274]
[1729356050992,0.8145,2642.9,2642.4,1.15973888]